[Event "*** Titled Tuesday Blitz"]
[Site "Chess.com"]
[Date "2019.10.01"]
[Round "2"]
[White "AliKa2810"]
[Black "sebsep"]
[Result "1-0"]
[WhiteElo "2593"]
[BlackElo "2078"]
[TimeControl "180+2"]
[EndTime "13:18:53 PDT"]
[Termination "AliKa2810 won by checkmate"]

1. e4 {[%clk 0:03:01.5]} 1... e5 {[%clk 0:02:58.3]} 2. Nf3 {[%clk 0:03:02.2]}
2... Nc6 {[%clk 0:02:59.8]} 3. Bb5 {[%clk 0:03:01.4]} 3... a6 {[%clk 0:03:00.8]}
4. Ba4 {[%clk 0:03:02.5]} 4... Nf6 {[%clk 0:03:01.3]} 5. O-O {[%clk 0:03:04.1]}
5... Be7 {[%clk 0:03:02.3]} 6. Re1 {[%clk 0:03:05.5]} 6... b5 {[%clk 0:03:02.5]}
7. Bb3 {[%clk 0:03:06.8]} 7... d6 {[%clk 0:03:04.4]} 8. c3 {[%clk 0:03:07.5]}
8... O-O {[%clk 0:03:04.9]} 9. h3 {[%clk 0:03:08.8]} 9... Na5 {[%clk 0:03:02.9]}
10. Bc2 {[%clk 0:03:09.7]} 10... c5 {[%clk 0:03:04.3]} 11. d4 {[%clk 0:03:11.3]}
11... Qc7 {[%clk 0:03:05.9]} 12. Nbd2 {[%clk 0:03:11.5]} 12... cxd4 {[%clk
0:03:05.9]} 13. cxd4 {[%clk 0:03:12.1]} 13... Nc6 {[%clk 0:03:07.4]} 14. d5
{[%clk 0:03:07.9]} 14... Nb4 {[%clk 0:03:06.7]} 15. Bb1 {[%clk 0:03:06.3]} 15...
a5 {[%clk 0:03:06.9]} 16. Nf1 {[%clk 0:03:02.3]} 16... Bd7 {[%clk 0:03:05.6]}
17. Bd2 {[%clk 0:02:33.8]} 17... Na6 {[%clk 0:03:03.4]} 18. Ng3 {[%clk
0:02:06.5]} 18... b4 {[%clk 0:03:01.9]} 19. Bd3 {[%clk 0:02:05.8]} 19... Nc5
{[%clk 0:03:02.3]} 20. Bf1 {[%clk 0:02:06.8]} 20... Rfc8 {[%clk 0:02:58.4]} 21.
Rc1 {[%clk 0:02:06.7]} 21... Qb6 {[%clk 0:02:57]} 22. Be3 {[%clk 0:02:02.7]}
22... Bb5 {[%clk 0:02:56.2]} 23. Nf5 {[%clk 0:01:48.3]} 23... Bf8 {[%clk
0:02:55.3]} 24. Nd2 {[%clk 0:01:18.3]} 24... Bxf1 {[%clk 0:02:40.4]} 25. Rxf1
{[%clk 0:01:18.1]} 25... Nfd7 {[%clk 0:02:27.9]} 26. Nc4 {[%clk 0:01:18]} 26...
Qa6 {[%clk 0:02:29.2]} 27. Qg4 {[%clk 0:01:09]} 27... Kh8 {[%clk 0:02:19.5]} 28.
Ncxd6 {[%clk 0:01:03.5]} 28... Bxd6 {[%clk 0:02:19.6]} 29. Qxg7# {[%clk
0:01:03.8]} 1-0

[Event "*** Titled Tuesday Blitz"]
[Site "Chess.com"]
[Date "2019.10.01"]
[Round "2"]
[White "GLeruste"]
[Black "Siemba"]
[Result "0-1"]
[WhiteElo "2497"]
[BlackElo "2236"]
[TimeControl "180+2"]
[EndTime "13:19:02 PDT"]
[Termination "Siemba won by resignation"]

1. d4 {[%clk 0:03:01.9]} 1... Nf6 {[%clk 0:03:00.8]} 2. Nc3 {[%clk 0:03:02.8]}
2... d5 {[%clk 0:03:00.2]} 3. Bf4 {[%clk 0:03:03.8]} 3... g6 {[%clk 0:02:53.4]}
4. e3 {[%clk 0:03:04.7]} 4... Bg7 {[%clk 0:02:54.4]} 5. h4 {[%clk 0:03:05.8]}
5... h5 {[%clk 0:02:53.7]} 6. Nf3 {[%clk 0:03:06.4]} 6... O-O {[%clk 0:02:54.4]}
7. Be2 {[%clk 0:03:06.3]} 7... c5 {[%clk 0:02:55.4]} 8. dxc5 {[%clk 0:02:41.1]}
8... Nc6 {[%clk 0:02:35.4]} 9. a3 {[%clk 0:02:10.4]} 9... Ne4 {[%clk 0:02:22.2]}
10. O-O {[%clk 0:01:21]} 10... Nxc3 {[%clk 0:02:13]} 11. bxc3 {[%clk 0:01:22.2]}
11... Bxc3 {[%clk 0:02:08.7]} 12. Rb1 {[%clk 0:01:22.8]} 12... e5 {[%clk
0:02:08.5]} 13. Bg5 {[%clk 0:01:23.7]} 13... f6 {[%clk 0:02:09.3]} 14. Qd3
{[%clk 0:01:21.5]} 14... e4 {[%clk 0:02:05.1]} 15. Qxc3 {[%clk 0:01:22.4]} 15...
exf3 {[%clk 0:02:05.3]} 16. Bxf3 {[%clk 0:01:19]} 16... fxg5 {[%clk 0:02:04.9]}
17. Rbd1 {[%clk 0:01:18.6]} 17... Be6 {[%clk 0:02:02.2]} 18. Qd3 {[%clk
0:01:18.4]} 18... Ne5 {[%clk 0:02:01]} 19. Qc3 {[%clk 0:00:52.9]} 19... Nxf3+
{[%clk 0:02:01.1]} 20. gxf3 {[%clk 0:00:54.8]} 20... gxh4 {[%clk 0:02:01.9]} 21.
Qe5 {[%clk 0:00:52.8]} 21... Qf6 {[%clk 0:02:01.5]} 22. f4 {[%clk 0:00:49.1]}
0-1

[Event "*** Titled Tuesday Blitz"]
[Site "Chess.com"]
[Date "2019.10.01"]
[Round "2"]
[White "VladDobrov"]
[Black "valeriocarnicelli"]
[Result "1-0"]
[WhiteElo "2948"]
[BlackElo "2494"]
[TimeControl "180+2"]
[EndTime "13:19:25 PDT"]
[Termination "VladDobrov won by checkmate"]

1. d4 {[%clk 0:03:01.9]} 1... Nf6 {[%clk 0:03:00.1]} 2. c4 {[%clk 0:03:03.8]}
2... g6 {[%clk 0:02:59.3]} 3. Nf3 {[%clk 0:03:05.7]} 3... Bg7 {[%clk 0:02:59.9]}
4. g3 {[%clk 0:03:07.5]} 4... d6 {[%clk 0:03:00.2]} 5. Bg2 {[%clk 0:03:09.4]}
5... O-O {[%clk 0:03:01.5]} 6. O-O {[%clk 0:03:11.3]} 6... Nc6 {[%clk
0:03:01.6]} 7. Nc3 {[%clk 0:03:12.6]} 7... e5 {[%clk 0:03:02.2]} 8. d5 {[%clk
0:03:10.3]} 8... Nb8 {[%clk 0:03:03]} 9. c5 {[%clk 0:03:10.9]} 9... Nbd7 {[%clk
0:02:45.9]} 10. cxd6 {[%clk 0:03:11.3]} 10... cxd6 {[%clk 0:02:47.8]} 11. Nd2
{[%clk 0:03:04.4]} 11... Nh5 {[%clk 0:02:37.9]} 12. e4 {[%clk 0:03:00.5]} 12...
f5 {[%clk 0:02:34.3]} 13. exf5 {[%clk 0:03:01.1]} 13... Ndf6 {[%clk 0:02:17.4]}
14. fxg6 {[%clk 0:02:59.7]} 14... hxg6 {[%clk 0:02:18.2]} 15. Nde4 {[%clk
0:02:58]} 15... Nxe4 {[%clk 0:02:11.1]} 16. Nxe4 {[%clk 0:02:58]} 16... Bf5
{[%clk 0:02:08.7]} 17. Ng5 {[%clk 0:02:54.5]} 17... Bh6 {[%clk 0:02:03.5]} 18.
Ne6 {[%clk 0:02:54.2]} 18... Bxe6 {[%clk 0:01:50.4]} 19. dxe6 {[%clk 0:02:56.1]}
19... Bxc1 {[%clk 0:01:49.2]} 20. Rxc1 {[%clk 0:02:50.5]} 20... Qe7 {[%clk
0:01:49.8]} 21. Qd5 {[%clk 0:02:41.6]} 21... Rab8 {[%clk 0:01:39.2]} 22. Rfd1
{[%clk 0:02:41.4]} 22... Rfd8 {[%clk 0:01:39.5]} 23. Qd3 {[%clk 0:02:37]} 23...
Kg7 {[%clk 0:01:37.8]} 24. Be4 {[%clk 0:02:31.3]} 24... Nf6 {[%clk 0:00:56.7]}
25. Bxg6 {[%clk 0:02:28.9]} 25... d5 {[%clk 0:00:57.6]} 26. Bf5 {[%clk
0:02:29.5]} 26... Rh8 {[%clk 0:00:52.5]} 27. Qe3 {[%clk 0:02:29.7]} 27... e4
{[%clk 0:00:45.2]} 28. Qg5+ {[%clk 0:02:29.4]} 28... Kf8 {[%clk 0:00:46.2]} 29.
Rc7 {[%clk 0:02:29.9]} 29... Qxc7 {[%clk 0:00:42.7]} 30. Qxf6+ {[%clk
0:02:31.1]} 30... Kg8 {[%clk 0:00:44.2]} 31. e7 {[%clk 0:02:32.7]} 31... Re8
{[%clk 0:00:31.1]} 32. Qg6# {[%clk 0:02:33.6]} 1-0

[Event "*** Titled Tuesday Blitz"]
[Site "Chess.com"]
[Date "2019.10.01"]
[Round "2"]
[White "Gr3egor"]
[Black "Konavets"]
[Result "0-1"]
[WhiteElo "2607"]
[BlackElo "2953"]
[TimeControl "180+2"]
[EndTime "13:19:29 PDT"]
[Termination "Konavets won by resignation"]

1. d4 {[%clk 0:03:01.9]} 1... Nf6 {[%clk 0:03:00.8]} 2. c4 {[%clk 0:03:01.4]}
2... e5 {[%clk 0:03:02.5]} 3. dxe5 {[%clk 0:03:02.2]} 3... Ng4 {[%clk
0:03:03.9]} 4. e4 {[%clk 0:03:03.8]} 4... Nxe5 {[%clk 0:03:04.5]} 5. f4 {[%clk
0:03:05.1]} 5... Nec6 {[%clk 0:03:06.2]} 6. Nf3 {[%clk 0:03:05]} 6... Bc5 {[%clk
0:03:05.9]} 7. Bd3 {[%clk 0:02:48.2]} 7... d6 {[%clk 0:03:06.9]} 8. Qe2 {[%clk
0:02:48.9]} 8... Bg4 {[%clk 0:03:04.1]} 9. Be3 {[%clk 0:02:48.7]} 9... Nd4
{[%clk 0:03:05.3]} 10. Qf2 {[%clk 0:02:43.5]} 10... Bxf3 {[%clk 0:03:06.2]} 11.
gxf3 {[%clk 0:02:43.8]} 11... Nbc6 {[%clk 0:03:06.9]} 12. Nc3 {[%clk 0:02:37.3]}
12... Qh4 {[%clk 0:03:05.1]} 13. O-O {[%clk 0:02:35.6]} 13... Qh3 {[%clk
0:03:02.4]} 14. Nd5 {[%clk 0:02:24.9]} 14... O-O-O {[%clk 0:03:00.7]} 15. Rad1
{[%clk 0:02:20.9]} 15... Ne6 {[%clk 0:02:55.9]} 16. f5 {[%clk 0:02:21.7]} 16...
Bxe3 {[%clk 0:02:56.8]} 17. Qxe3 {[%clk 0:02:21.2]} 17... Nc5 {[%clk 0:02:58.2]}
18. Bc2 {[%clk 0:02:16.8]} 18... a5 {[%clk 0:02:58]} 19. a3 {[%clk 0:02:11.8]}
19... a4 {[%clk 0:02:58.9]} 20. Nc3 {[%clk 0:02:05.5]} 20... g6 {[%clk
0:02:55.2]} 21. f6 {[%clk 0:02:04.1]} 21... Ne5 {[%clk 0:02:55.1]} 22. Nxa4
{[%clk 0:02:04]} 22... Nxc4 {[%clk 0:02:50.5]} 23. Qc3 {[%clk 0:02:01.3]} 23...
Nxa4 {[%clk 0:02:48.3]} 24. Bxa4 {[%clk 0:02:03.2]} 24... Nb6 {[%clk 0:02:46.1]}
25. Rc1 {[%clk 0:02:02.6]} 25... c5 {[%clk 0:02:43.9]} 26. Bb5 {[%clk
0:01:44.1]} 26... Kb8 {[%clk 0:02:44.1]} 27. Qa5 {[%clk 0:01:28.6]} 27... Nc8
{[%clk 0:02:41.1]} 28. b4 {[%clk 0:01:28]} 28... Qe6 {[%clk 0:02:30.7]} 29. bxc5
{[%clk 0:00:53]} 29... dxc5 {[%clk 0:02:32.6]} 30. Rxc5 {[%clk 0:00:54.1]} 30...
b6 {[%clk 0:02:34]} 31. Qa6 {[%clk 0:00:55.5]} 31... bxc5 {[%clk 0:02:35.5]} 32.
Bc6 {[%clk 0:00:57]} 32... Qb3 {[%clk 0:02:36.9]} 0-1

[Event "*** Titled Tuesday Blitz"]
[Site "Chess.com"]
[Date "2019.10.01"]
[Round "2"]
[White "Bathory44"]
[Black "AntonSmirnov"]
[Result "0-1"]
[WhiteElo "2599"]
[BlackElo "2909"]
[TimeControl "180+2"]
[EndTime "13:19:29 PDT"]
[Termination "AntonSmirnov won by resignation"]

1. e4 {[%clk 0:03:01.9]} 1... e6 {[%clk 0:02:55.8]} 2. d4 {[%clk 0:03:02.5]}
2... d5 {[%clk 0:02:56.9]} 3. Nd2 {[%clk 0:03:04.1]} 3... c5 {[%clk 0:02:57]} 4.
exd5 {[%clk 0:03:03.4]} 4... Qxd5 {[%clk 0:02:58.9]} 5. dxc5 {[%clk 0:03:03.1]}
5... Nf6 {[%clk 0:02:58.9]} 6. Ngf3 {[%clk 0:03:03.1]} 6... Qxc5 {[%clk
0:02:58.7]} 7. Bd3 {[%clk 0:03:01.2]} 7... Nbd7 {[%clk 0:02:59.2]} 8. O-O {[%clk
0:03:00]} 8... Be7 {[%clk 0:03:00.4]} 9. a4 {[%clk 0:02:59.9]} 9... b6 {[%clk
0:03:01.2]} 10. a5 {[%clk 0:03:00]} 10... Bb7 {[%clk 0:03:01.6]} 11. a6 {[%clk
0:02:50]} 11... Bc6 {[%clk 0:02:54.3]} 12. Nb3 {[%clk 0:02:50.6]} 12... Qh5
{[%clk 0:02:54.9]} 13. Nbd4 {[%clk 0:02:51.5]} 13... Bd5 {[%clk 0:02:51.8]} 14.
c4 {[%clk 0:02:51.5]} 14... Be4 {[%clk 0:02:53]} 15. Bxe4 {[%clk 0:02:46.3]}
15... Nxe4 {[%clk 0:02:54.9]} 16. Nc6 {[%clk 0:02:38.7]} 16... Bf6 {[%clk
0:02:45.3]} 17. Re1 {[%clk 0:02:32.5]} 17... Qc5 {[%clk 0:02:36.7]} 18. Ncd4
{[%clk 0:02:09.1]} 18... Nd6 {[%clk 0:02:36.5]} 19. b3 {[%clk 0:02:03.8]} 19...
Qc7 {[%clk 0:01:22.9]} 20. Nxe6 {[%clk 0:02:04.3]} 20... fxe6 {[%clk 0:01:23.5]}
21. Rxe6+ {[%clk 0:02:05.2]} 21... Kf7 {[%clk 0:01:24.5]} 22. Rxd6 {[%clk
0:02:02]} 22... Nc5 {[%clk 0:01:18.8]} 23. b4 {[%clk 0:01:47.7]} 23... Qxd6
{[%clk 0:00:46.2]} 24. bxc5 {[%clk 0:01:49.6]} 24... Qxd1+ {[%clk 0:00:46.2]}
0-1

[Event "*** Titled Tuesday Blitz"]
[Site "Chess.com"]
[Date "2019.10.01"]
[Round "2"]
[White "ChessWarrior7197"]
[Black "TrenerChos"]
[Result "1-0"]
[WhiteElo "2909"]
[BlackElo "2398"]
[TimeControl "180+2"]
[EndTime "13:19:39 PDT"]
[Termination "ChessWarrior7197 won by resignation"]

1. d4 {[%clk 0:03:01.9]} 1... Nf6 {[%clk 0:02:58.8]} 2. c4 {[%clk 0:03:02.5]}
2... c5 {[%clk 0:02:58.6]} 3. Nf3 {[%clk 0:03:02.1]} 3... e6 {[%clk 0:02:59.1]}
4. Nc3 {[%clk 0:03:00.9]} 4... d5 {[%clk 0:02:59.2]} 5. e3 {[%clk 0:02:59.5]}
5... Nc6 {[%clk 0:02:58.7]} 6. a3 {[%clk 0:03:00.9]} 6... Be7 {[%clk 0:02:58.6]}
7. dxc5 {[%clk 0:03:01.8]} 7... Bxc5 {[%clk 0:02:58.7]} 8. b4 {[%clk 0:03:02.7]}
8... Be7 {[%clk 0:02:57.7]} 9. Bb2 {[%clk 0:03:02.8]} 9... O-O {[%clk
0:02:57.5]} 10. Be2 {[%clk 0:03:03.9]} 10... dxc4 {[%clk 0:02:57.4]} 11. Qxd8
{[%clk 0:03:04.4]} 11... Rxd8 {[%clk 0:02:57.6]} 12. Bxc4 {[%clk 0:03:06.3]}
12... b6 {[%clk 0:02:57]} 13. Ke2 {[%clk 0:03:06.8]} 13... Bb7 {[%clk
0:02:57.7]} 14. Rac1 {[%clk 0:03:07.9]} 14... Rac8 {[%clk 0:02:57.6]} 15. Bd3
{[%clk 0:03:05.8]} 15... Nd5 {[%clk 0:02:52.4]} 16. Nxd5 {[%clk 0:03:05.8]}
16... Rxd5 {[%clk 0:02:51.4]} 17. Rhd1 {[%clk 0:03:00.3]} 17... Rdd8 {[%clk
0:02:43.9]} 18. Be4 {[%clk 0:02:58.4]} 18... Rxd1 {[%clk 0:02:43.5]} 19. Rxd1
{[%clk 0:02:58.5]} 19... f5 {[%clk 0:02:38.1]} 20. Bb1 {[%clk 0:02:57.4]} 20...
Rd8 {[%clk 0:02:37.2]} 21. Ba2 {[%clk 0:02:57.3]} 21... Kf7 {[%clk 0:02:35.2]}
22. Rc1 {[%clk 0:02:57.5]} 22... h6 {[%clk 0:02:34.1]} 23. Rxc6 {[%clk 0:02:58]}
23... Bxc6 {[%clk 0:02:32.9]} 24. Ne5+ {[%clk 0:02:59.2]} 24... Ke8 {[%clk
0:02:32.2]} 25. Nxc6 {[%clk 0:02:59.6]} 25... Rc8 {[%clk 0:02:32.9]} 26. b5
{[%clk 0:03:00.3]} 26... Kd7 {[%clk 0:02:33.4]} 27. Bxg7 {[%clk 0:02:59.7]}
27... Rg8 {[%clk 0:02:33.3]} 28. Bxh6 {[%clk 0:02:54]} 28... Rxg2 {[%clk
0:02:33]} 29. Nxe7 {[%clk 0:02:55.3]} 29... Kxe7 {[%clk 0:02:33.5]} 30. h4
{[%clk 0:02:56.4]} 30... e5 {[%clk 0:02:31.2]} 31. Bg5+ {[%clk 0:02:56.6]} 31...
Kd6 {[%clk 0:02:31.3]} 32. Bf7 {[%clk 0:02:40.1]} 32... Kc5 {[%clk 0:02:24.4]}
33. Kf1 {[%clk 0:02:41.5]} 33... Rg4 {[%clk 0:02:21.7]} 34. f3 {[%clk 0:02:43]}
34... Rg3 {[%clk 0:02:15.3]} 35. Kf2 {[%clk 0:02:41.3]} 35... f4 {[%clk
0:02:16]} 36. exf4 {[%clk 0:02:42.7]} 36... exf4 {[%clk 0:02:16.6]} 37. Bxf4
{[%clk 0:02:44.6]} 37... Rg7 {[%clk 0:02:17.2]} 38. Be8 {[%clk 0:02:45.8]} 38...
Re7 {[%clk 0:02:16.8]} 39. Bc6 {[%clk 0:02:46.1]} 39... a6 {[%clk 0:02:17.1]}
40. Be3+ {[%clk 0:02:43.1]} 40... Kd6 {[%clk 0:02:17.8]} 41. a4 {[%clk
0:02:44.2]} 41... axb5 {[%clk 0:02:15.1]} 42. axb5 {[%clk 0:02:44.8]} 42... Rh7
{[%clk 0:02:15.8]} 43. Bg5 {[%clk 0:02:44.6]} 43... Ke5 {[%clk 0:02:14.5]} 44.
Kg3 {[%clk 0:02:45.2]} 44... Ra7 {[%clk 0:02:13.7]} 45. h5 {[%clk 0:02:45.9]}
45... Ra1 {[%clk 0:02:13.6]} 46. f4+ {[%clk 0:02:44]} 46... Kf5 {[%clk
0:02:14.3]} 47. Bd7+ {[%clk 0:02:45.4]} 47... Ke4 {[%clk 0:02:15.1]} 48. h6
{[%clk 0:02:47.3]} 48... Rg1+ {[%clk 0:02:14.9]} 49. Kh4 {[%clk 0:02:48.7]}
49... Kf3 {[%clk 0:02:13.4]} 50. Bc6+ {[%clk 0:02:49.9]} 50... Ke3 {[%clk
0:02:12.5]} 51. h7 {[%clk 0:02:51.8]} 1-0

[Event "*** Titled Tuesday Blitz"]
[Site "Chess.com"]
[Date "2019.10.01"]
[Round "2"]
[White "JussupowFan"]
[Black "IMRosen"]
[Result "0-1"]
[WhiteElo "2210"]
[BlackElo "2649"]
[TimeControl "180+2"]
[EndTime "13:19:50 PDT"]
[Termination "IMRosen won by resignation"]

1. c4 {[%clk 0:03:01.9]} 1... e6 {[%clk 0:02:59.8]} 2. g3 {[%clk 0:03:02.8]}
2... Nf6 {[%clk 0:03:00.3]} 3. Bg2 {[%clk 0:03:03.3]} 3... d5 {[%clk 0:03:02]}
4. Nf3 {[%clk 0:03:04.8]} 4... Be7 {[%clk 0:03:03]} 5. O-O {[%clk 0:03:06.2]}
5... dxc4 {[%clk 0:03:04]} 6. Na3 {[%clk 0:02:53.6]} 6... O-O {[%clk 0:03:03.3]}
7. Nxc4 {[%clk 0:02:54]} 7... a6 {[%clk 0:02:48.6]} 8. a4 {[%clk 0:02:54.1]}
8... b6 {[%clk 0:02:42]} 9. d4 {[%clk 0:02:50.9]} 9... Bb7 {[%clk 0:02:41.6]}
10. Bf4 {[%clk 0:02:49.7]} 10... Bd5 {[%clk 0:02:28.2]} 11. Rc1 {[%clk
0:02:39.9]} 11... Nc6 {[%clk 0:02:18.7]} 12. Nce5 {[%clk 0:02:32.8]} 12... Nb4
{[%clk 0:02:08.1]} 13. Nd3 {[%clk 0:02:31.4]} 13... Rc8 {[%clk 0:01:37.9]} 14.
Nxb4 {[%clk 0:02:15.8]} 14... Bxb4 {[%clk 0:01:39.8]} 15. Ne5 {[%clk 0:02:13.1]}
15... Bxg2 {[%clk 0:01:36.7]} 16. Kxg2 {[%clk 0:02:15]} 16... Qd5+ {[%clk
0:01:37.7]} 17. f3 {[%clk 0:02:16.2]} 17... c5 {[%clk 0:01:33]} 18. Nd3 {[%clk
0:02:10.9]} 18... Qxd4 {[%clk 0:01:25]} 19. Be5 {[%clk 0:02:03.3]} 19... Qd8
{[%clk 0:01:25.9]} 20. Nxb4 {[%clk 0:01:47.3]} 20... cxb4 {[%clk 0:01:27.1]} 21.
Qxd8 {[%clk 0:01:44]} 21... Rfxd8 {[%clk 0:01:19.3]} 22. Bc7 {[%clk 0:01:42.8]}
22... Rd2 {[%clk 0:01:20.2]} 23. Bxb6 {[%clk 0:01:44.1]} 23... Rxe2+ {[%clk
0:01:17.6]} 24. Bf2 {[%clk 0:01:22.8]} 24... Rcc2 {[%clk 0:01:10]} 25. Rxc2
{[%clk 0:01:13.6]} 25... Rxc2 {[%clk 0:01:10.9]} 26. Rd1 {[%clk 0:01:14.1]}
26... Nd5 {[%clk 0:01:11.9]} 27. b3 {[%clk 0:01:06.3]} 27... Ne3+ {[%clk
0:01:11.2]} 0-1

[Event "*** Titled Tuesday Blitz"]
[Site "Chess.com"]
[Date "2019.10.01"]
[Round "2"]
[White "ChessQueen"]
[Black "malandragem"]
[Result "1-0"]
[WhiteElo "2606"]
[BlackElo "2306"]
[TimeControl "180+2"]
[EndTime "13:19:52 PDT"]
[Termination "ChessQueen won by resignation"]

1. Nf3 {[%clk 0:03:01.9]} 1... Nf6 {[%clk 0:03:00.9]} 2. g3 {[%clk 0:03:02.6]}
2... g6 {[%clk 0:03:02.3]} 3. Bg2 {[%clk 0:03:03.6]} 3... Bg7 {[%clk 0:03:04]}
4. O-O {[%clk 0:03:05]} 4... O-O {[%clk 0:03:05.4]} 5. d4 {[%clk 0:03:06.5]}
5... d6 {[%clk 0:03:06.8]} 6. c4 {[%clk 0:03:07.8]} 6... Nc6 {[%clk 0:03:08.3]}
7. d5 {[%clk 0:03:00.3]} 7... Na5 {[%clk 0:03:03.9]} 8. Nbd2 {[%clk 0:03:00.4]}
8... c5 {[%clk 0:03:01.6]} 9. dxc6 {[%clk 0:02:57.6]} 9... Nxc6 {[%clk
0:02:54.5]} 10. Re1 {[%clk 0:02:57.9]} 10... e5 {[%clk 0:02:30]} 11. e4 {[%clk
0:02:54.4]} 11... Be6 {[%clk 0:02:26.7]} 12. b3 {[%clk 0:02:49.7]} 12... h6
{[%clk 0:02:21.6]} 13. h3 {[%clk 0:02:46.1]} 13... Qd7 {[%clk 0:02:11.9]} 14.
Kh2 {[%clk 0:02:46.7]} 14... Nxe4 {[%clk 0:01:47.4]} 15. Nxe4 {[%clk 0:02:33]}
15... f5 {[%clk 0:01:48]} 16. Nxd6 {[%clk 0:02:19.1]} 16... e4 {[%clk
0:01:48.6]} 17. Ba3 {[%clk 0:01:56.6]} 17... Rfd8 {[%clk 0:01:12.4]} 18. Nh4
{[%clk 0:01:44.8]} 18... Kh7 {[%clk 0:00:45.7]} 19. Rb1 {[%clk 0:01:31.5]} 19...
g5 {[%clk 0:00:44.5]} 20. Nhxf5 {[%clk 0:01:30.3]} 20... Bxf5 {[%clk 0:00:44.8]}
21. Nxf5 {[%clk 0:01:31.3]} 21... Qxf5 {[%clk 0:00:45.3]} 22. Bxe4 {[%clk
0:01:28.4]} 22... Qxe4 {[%clk 0:00:44.4]} 23. Rxe4 {[%clk 0:01:29.1]} 23... Rxd1
{[%clk 0:00:44.7]} 24. Rxd1 {[%clk 0:01:31]} 1-0

[Event "*** Titled Tuesday Blitz"]
[Site "Chess.com"]
[Date "2019.10.01"]
[Round "2"]
[White "Quaritch79"]
[Black "heyiampotato"]
[Result "1-0"]
[WhiteElo "2301"]
[BlackElo "2526"]
[TimeControl "180+2"]
[EndTime "13:19:54 PDT"]
[Termination "Quaritch79 won by resignation"]

1. e4 {[%clk 0:03:01.8]} 1... c5 {[%clk 0:02:59.8]} 2. Nf3 {[%clk 0:03:02.8]}
2... d6 {[%clk 0:03:00.3]} 3. d4 {[%clk 0:03:04.1]} 3... cxd4 {[%clk 0:03:02.2]}
4. Nxd4 {[%clk 0:03:05.6]} 4... Nf6 {[%clk 0:03:03.6]} 5. Nc3 {[%clk 0:03:07.2]}
5... a6 {[%clk 0:03:03.9]} 6. Be3 {[%clk 0:03:08.4]} 6... e5 {[%clk 0:03:04.4]}
7. Nb3 {[%clk 0:03:09.3]} 7... Be7 {[%clk 0:02:59.4]} 8. Qd2 {[%clk 0:03:08.4]}
8... Be6 {[%clk 0:02:58.9]} 9. f3 {[%clk 0:03:09.6]} 9... h5 {[%clk 0:02:53.5]}
10. O-O-O {[%clk 0:03:10.2]} 10... b5 {[%clk 0:02:40.6]} 11. Nd5 {[%clk
0:03:08]} 11... Nxd5 {[%clk 0:02:21.4]} 12. exd5 {[%clk 0:03:09.1]} 12... Bd7
{[%clk 0:02:22.2]} 13. f4 {[%clk 0:03:09]} 13... Bg4 {[%clk 0:02:05.3]} 14. Be2
{[%clk 0:03:07]} 14... Nd7 {[%clk 0:02:02.4]} 15. h3 {[%clk 0:03:02.8]} 15...
Bxe2 {[%clk 0:02:01.9]} 16. Qxe2 {[%clk 0:03:04.1]} 16... h4 {[%clk 0:01:32.4]}
17. Kb1 {[%clk 0:03:02.7]} 17... Bf6 {[%clk 0:01:31.3]} 18. fxe5 {[%clk
0:02:59.1]} 18... Bxe5 {[%clk 0:01:29.6]} 19. Nd4 {[%clk 0:02:49.4]} 19... O-O
{[%clk 0:01:23.6]} 20. Nc6 {[%clk 0:02:37.6]} 20... Qe8 {[%clk 0:01:18.6]} 21.
Qg4 {[%clk 0:02:31.3]} 21... f5 {[%clk 0:01:03.5]} 22. Qxh4 {[%clk 0:02:27.6]}
22... Bf6 {[%clk 0:01:00.7]} 23. Bg5 {[%clk 0:02:25.1]} 23... Ne5 {[%clk
0:00:42.4]} 24. Bxf6 {[%clk 0:02:23.9]} 24... Rxf6 {[%clk 0:00:43]} 25. Rde1
{[%clk 0:02:16.6]} 25... f4 {[%clk 0:00:30]} 26. Qg5 {[%clk 0:02:07.9]} 26...
Qg6 {[%clk 0:00:23.1]} 27. Ne7+ {[%clk 0:02:03.6]} 1-0

[Event "*** Titled Tuesday Blitz"]
[Site "Chess.com"]
[Date "2019.10.01"]
[Round "2"]
[White "vlad10898"]
[Black "yuki_chess123"]
[Result "1-0"]
[WhiteElo "2642"]
[BlackElo "2170"]
[TimeControl "180+2"]
[EndTime "13:19:56 PDT"]
[Termination "vlad10898 won by resignation"]

1. e4 {[%clk 0:03:01.9]} 1... g6 {[%clk 0:02:35.7]} 2. d4 {[%clk 0:03:01.4]}
2... Bg7 {[%clk 0:02:36.3]} 3. Nc3 {[%clk 0:03:03]} 3... c6 {[%clk 0:02:37.6]}
4. f4 {[%clk 0:02:57.2]} 4... d5 {[%clk 0:02:38.6]} 5. e5 {[%clk 0:02:58.7]}
5... Nh6 {[%clk 0:02:39.2]} 6. Nf3 {[%clk 0:02:56.2]} 6... f6 {[%clk 0:02:40.5]}
7. Be3 {[%clk 0:02:54.8]} 7... Bg4 {[%clk 0:02:41.5]} 8. h3 {[%clk 0:02:53.7]}
8... Bxf3 {[%clk 0:02:42.2]} 9. Qxf3 {[%clk 0:02:55.6]} 9... O-O {[%clk
0:02:43.5]} 10. exf6 {[%clk 0:02:54.3]} 10... exf6 {[%clk 0:02:36.6]} 11. g4
{[%clk 0:02:48.6]} 11... f5 {[%clk 0:02:37.7]} 12. O-O-O {[%clk 0:02:43.6]}
12... Re8 {[%clk 0:02:27.3]} 13. g5 {[%clk 0:02:39.7]} 13... Nf7 {[%clk
0:02:27]} 14. h4 {[%clk 0:02:41]} 14... Nd6 {[%clk 0:02:06.9]} 15. h5 {[%clk
0:02:37.6]} 15... Ne4 {[%clk 0:02:05.9]} 16. hxg6 {[%clk 0:02:34.4]} 16... hxg6
{[%clk 0:02:06.2]} 17. Nxe4 {[%clk 0:02:35.1]} 17... Rxe4 {[%clk 0:02:05.3]} 18.
Bd3 {[%clk 0:02:29.1]} 18... Qa5 {[%clk 0:02:05.8]} 19. Bxe4 {[%clk 0:02:24.9]}
19... dxe4 {[%clk 0:02:06.5]} 20. Qh3 {[%clk 0:01:30.3]} 20... Qxa2 {[%clk
0:02:06.2]} 21. Qh7+ {[%clk 0:01:31]} 21... Kf7 {[%clk 0:02:07.3]} 22. Rh6
{[%clk 0:01:32.2]} 22... Nd7 {[%clk 0:01:05.7]} 23. Qxg6+ {[%clk 0:01:31.5]}
23... Kg8 {[%clk 0:01:05.5]} 24. Rdh1 {[%clk 0:01:24]} 24... Qa1+ {[%clk
0:00:53.8]} 25. Kd2 {[%clk 0:01:24.7]} 25... Qxh1 {[%clk 0:00:54.8]} 26. Rxh1
{[%clk 0:01:24.9]} 26... Nf8 {[%clk 0:00:55.5]} 1-0